lending/lending_fUSD_20241229
["ID","MTS","AMOUNT","RATE_DAILY","PERIOD"]
[347098750,1735497040998,-500.0,0.00013174,2]
[347098751,1735497041007,-500.0,0.00013174,2]
[347098752,1735497041016,-500.0,0.00013174,2]
[347098753,1735497041024,-500.0,0.00013174,2]
[347098754,1735497041034,-500.0,0.00013174,2]
[347098755,1735497041043,-500.0,0.00013174,2]
[347098756,1735497041052,-500.0,0.00013174,2]
[347098757,1735497041061,-399.82,0.00013174,2]
[347098758,1735497041070,-500.0,0.00013174,2]
[347098759,1735497041079,-500.0,0.00013174,2]
[347098760,1735497041088,-604.23,0.00013174,2]
[347098761,1735497041097,-500.0,0.00013174,2]
[347098762,1735497041106,-500.0,0.00013174,2]
[347098763,1735497041117,-500.0,0.00013174,2]
[347098764,1735497041127,-500.0,0.00013174,2]
[347098765,1735497041136,-500.0,0.00013174,2]
[347098766,1735497041145,-409.88390118,0.00013174,2]
[347098767,1735497041154,-500.0,0.00013174,2]
[347098768,1735497041162,-500.0,0.00013174,2]
[347098769,1735497041171,-500.0,0.00013174,2]
[347098770,1735497041180,-519.45,0.00013174,2]
[347098771,1735497041189,-500.0,0.00013174,2]
[347098772,1735497041198,-500.0,0.00013174,2]
[347098773,1735497041207,-500.0,0.00013174,2]
[347098774,1735497041216,-500.0,0.00013174,2]
[347098775,1735497041225,-500.0,0.00013174,2]
[347098776,1735497041234,-500.0,0.00013174,2]
[347098777,1735497041243,-315.0661411,0.00013174,2]
[347098778,1735497041252,-242.30653107,0.00013174,2]
[347098779,1735497041262,-500.0,0.00013174,2]
[347098780,1735497041275,-500.0,0.00013174,2]
[347098781,1735497041283,-295.32,0.00013174,2]
[347098782,1735497041294,-500.0,0.00013174,2]
[347098783,1735497041303,-500.0,0.00013174,2]
[347098784,1735497041312,-500.0,0.00013174,2]
[347098785,1735497041321,-500.0,0.00013174,2]
[347098786,1735497041330,-500.0,0.00013174,2]
[347098787,1735497041340,-692.92,0.00013174,2]
[347098788,1735497041349,-532.63,0.00013174,2]
[347098789,1735497041358,-500.0,0.00013174,2]
[347098790,1735497041367,-500.0,0.00013174,2]
[347098791,1735497041376,-500.0,0.00013174,2]
[347098792,1735497041385,-645.8,0.00013174,2]
[347098793,1735497041394,-500.0,0.00013174,2]
[347098794,1735497041403,-831.99,0.00013174,2]
[347098795,1735497041412,-1748.63,0.00013174,2]
[347098796,1735497041421,-761.11,0.00013174,2]
[347098797,1735497041430,-500.24,0.00013175,2]
[347098798,1735497041439,-328.29,0.00013175,2]
[347098799,1735497041448,-500.0,0.00013175,2]
[347098800,1735497041457,-458.58,0.00013175,2]
[347098801,1735497041466,-205.84,0.00013175,2]
[347098802,1735497041476,-500.0,0.00013175,2]
[347098803,1735497041484,-500.0,0.00013175,2]
[347098804,1735497041493,-500.0,0.00013175,2]
[347098805,1735497041502,-500.0,0.00013175,2]
[347098806,1735497041512,-500.0,0.00013175,2]
[347098807,1735497041521,-191.9,0.00013175,2]
[347098808,1735497041530,-500.0,0.00013175,2]
[347098809,1735497041540,-500.0,0.00013175,2]
[347098810,1735497041549,-500.0,0.00013175,2]
[347098811,1735497041559,-444.43,0.00013175,2]
[347098812,1735497041568,-279.47,0.00013175,2]
[347098813,1735497041577,-500.0,0.00013175,2]
[347098814,1735497041586,-500.0,0.00013175,2]
[347098815,1735497041595,-500.0,0.00013175,2]
[347098816,1735497041605,-500.0,0.00013175,2]
[347098817,1735497041614,-518.41,0.00013175,2]
[347098818,1735497041623,-519.09,0.00013175,2]
[347098819,1735497041633,-500.0,0.00013176,2]
[347098820,1735497041642,-512.7,0.00013176,2]
[347098821,1735497041651,-500.0,0.00013176,2]
[347098822,1735497041660,-500.0,0.00013176,2]
[347098823,1735497041669,-500.0,0.00013176,2]
[347098824,1735497041678,-500.0,0.00013176,2]
[347098825,1735497041687,-500.0,0.00013176,2]
[347098826,1735497041696,-500.0,0.00013176,2]
[347098827,1735497041705,-1355.83,0.00013176,2]
[347098828,1735497041714,-635.86,0.00013176,2]
[347098829,1735497041723,-571.82,0.00013176,2]
[347098830,1735497041733,-992.4,0.00013176,2]
[347098831,1735497041742,-2255.77,0.00013176,2]
[347098832,1735497041751,-495.51,0.00013177,2]
[347098833,1735497041947,-10562.0,0.00013181,2]
[347098834,1735497041957,-775.91,0.0001322,2]
[347098835,1735497041967,-500.0,0.0001322,2]
[347098836,1735497041976,-284.19,0.0001322,2]
[347098837,1735497041985,-598.24,0.0001322,2]
[347098838,1735497041995,-679.19,0.0001322,2]
[347098839,1735497042004,-500.0,0.0001322,2]
[347098840,1735497042014,-500.0,0.0001322,2]
[347098841,1735497042024,-500.0,0.0001322,2]
[347098842,1735497042033,-3537.28,0.0001322,2]
[347098843,1735497042043,-412.31,0.0001322,2]
[347098844,1735497042053,-174.03,0.0001322,2]
[347098845,1735497042062,-358.38,0.00013447,2]
[347098846,1735497042071,-500.0,0.00013447,2]
[347098847,1735497042081,-500.0,0.00013448,2]
[347098848,1735497042091,-172.98,0.00013448,2]
[347098849,1735497042101,-500.0,0.00013448,2]
[347098850,1735497042110,-500.0,0.00013448,2]
[347098851,1735497042120,-692.92,0.00013448,2]
[347098852,1735497042129,-532.63,0.00013448,2]
[347098853,1735497042139,-500.0,0.00013448,2]
[347098854,1735497042148,-217.69,0.00013448,2]
[347098855,1735497042158,-500.0,0.00013448,2]
[347098856,1735497042167,-500.0,0.00013448,2]
[347098857,1735497042176,-831.99,0.00013448,2]
[347098858,1735497042185,-1748.63,0.00013448,2]
[347098859,1735497042195,-761.11,0.00013448,2]
[347098860,1735497042204,-258.78,0.00013449,2]
[347098861,1735497042213,-364.99,0.00013449,2]
[347098862,1735497042223,-398.03,0.00013449,2]
[347098863,1735497042231,-500.0,0.00013449,2]
[347098864,1735497042241,-435.83,0.00013449,2]
[347098865,1735497042250,-605.71,0.00013449,2]
[347098866,1735497042259,-178.13,0.00013449,2]
[347098867,1735497042272,-635.37,0.00013449,2]
[347098868,1735497042282,-500.0,0.00013449,2]
[347098869,1735497042291,-572.97,0.00013449,2]
[347098870,1735497042301,-500.0,0.00013449,2]
[347098871,1735497042310,-500.0,0.00013449,2]
[347098872,1735497042320,-500.0,0.00013449,2]
[347098873,1735497042330,-518.41,0.00013449,2]
[347098874,1735497042339,-519.09,0.00013449,2]
[347098875,1735497042349,-500.0,0.0001345,2]
[347098876,1735497042359,-512.7,0.0001345,2]
[347098877,1735497042368,-500.0,0.0001345,2]
[347098878,1735497042377,-500.0,0.0001345,2]
[347098879,1735497042386,-500.0,0.0001345,2]
[347098880,1735497042395,-500.0,0.0001345,2]
[347098881,1735497042405,-500.0,0.0001345,2]
[347098882,1735497042414,-523.29,0.0001345,2]
[347098883,1735497042423,-1355.83,0.0001345,2]
[347098884,1735497042432,-635.86,0.0001345,2]
[347098885,1735497042442,-992.4,0.0001345,2]
[347098886,1735497042451,-2255.77,0.0001345,2]
[347098887,1735497042461,-775.91,0.00013494,2]
[347098888,1735497042470,-500.0,0.00013494,2]
[347098889,1735497042480,-679.19,0.00013494,2]
[347098890,1735497042490,-455.97,0.00013494,2]
[347098891,1735497042500,-500.0,0.00013494,2]
[347098892,1735497042510,-500.0,0.00013494,2]
[347098893,1735497042519,-3537.28,0.00013494,2]
[347098894,1735497042529,-4000.0,0.00013699,2]
[347098895,1735497042538,-500.0,0.00013699,2]
[347098896,1735497042548,-343.52,0.00013699,2]
[347098897,1735497042557,-200.0,0.00013699,2]
[347098898,1735497042566,-500.0,0.00013721,2]
[347098899,1735497042577,-500.0,0.00013722,2]
[347098900,1735497042586,-500.0,0.00013722,2]
[347098901,1735497042596,-440.75,0.00013722,2]
[347098902,1735497042605,-692.92,0.00013722,2]
[347098903,1735497042615,-532.63,0.00013722,2]
[347098904,1735497042624,-500.0,0.00013722,2]
[347098905,1735497042633,-411.26,0.00013722,2]
[347098906,1735497042643,-500.0,0.00013722,2]
[347098907,1735497042653,-831.99,0.00013722,2]
[347098908,1735497042662,-1748.63,0.00013722,2]
[347098909,1735497042671,-761.11,0.00013722,2]
[347098910,1735497042681,-342.45,0.00013723,2]
[347098911,1735497042691,-500.0,0.00013723,2]
[347098912,1735497042701,-500.0,0.00013723,2]
[347098913,1735497042710,-500.0,0.00013723,2]
[347098914,1735497042720,-500.0,0.00013723,2]
[347098915,1735497042729,-518.41,0.00013723,2]
[347098916,1735497042739,-519.09,0.00013723,2]
[347098917,1735497042750,-500.0,0.00013724,2]
[347098918,1735497042759,-512.7,0.00013724,2]
[347098919,1735497042769,-500.0,0.00013724,2]
[347098920,1735497042778,-500.0,0.00013724,2]
[347098921,1735497042788,-554.66,0.00013724,2]
[347098922,1735497042797,-500.0,0.00013724,2]
[347098924,1735497042807,-500.0,0.00013724,2]
[347098926,1735497042816,-1355.83,0.00013724,2]
[347098927,1735497042825,-635.86,0.00013724,2]
[347098929,1735497042836,-992.4,0.00013724,2]
[347098931,1735497042845,-2255.77,0.00013724,2]
[347098933,1735497042854,-775.91,0.00013768,2]
[347098935,1735497042864,-500.0,0.00013768,2]
[347098937,1735497042873,-679.19,0.00013768,2]
[347098939,1735497042882,-500.0,0.00013768,2]
[347098941,1735497042892,-500.0,0.00013768,2]
[347098943,1735497042901,-3537.28,0.00013768,2]
[347098946,1735497042910,-341.6,0.00013992,2]
[347098948,1735497042919,-826.58,0.00013995,2]
[347098950,1735497042928,-500.0,0.00013995,2]
[347098952,1735497042937,-500.0,0.00013996,2]
[347098954,1735497042946,-500.0,0.00013996,2]
[347098956,1735497042956,-692.92,0.00013996,2]
[347098958,1735497042965,-532.63,0.00013996,2]
[347098960,1735497042974,-500.0,0.00013996,2]
[347098962,1735497042984,-500.0,0.00013996,2]
[347098963,1735497042993,-831.99,0.00013996,2]
[347098965,1735497043002,-1748.63,0.00013996,2]
[347098967,1735497043011,-761.11,0.00013996,2]
[347098969,1735497043020,-500.0,0.00013997,2]
[347098971,1735497043029,-500.0,0.00013997,2]
[347098973,1735497043039,-500.0,0.00013997,2]
[347098975,1735497043049,-500.0,0.00013997,2]
[347098978,1735497043058,-518.41,0.00013997,2]
[347098980,1735497043069,-519.09,0.00013997,2]
[347098981,1735497043078,-500.0,0.00013998,2]
[347098984,1735497043087,-512.7,0.00013998,2]
[347098985,1735497043097,-500.0,0.00013998,2]
[347098987,1735497043106,-500.0,0.00013998,2]
[347098989,1735497043115,-500.0,0.00013998,2]
[347098991,1735497043125,-500.0,0.00013998,2]
[347098992,1735497043133,-1355.83,0.00013998,2]
[347098993,1735497043143,-635.86,0.00013998,2]
[347098994,1735497043152,-992.4,0.00013998,2]
[347098995,1735497043162,-2255.77,0.00013998,2]
[347098996,1735497043171,-500.0,0.00014,2]
[347098997,1735497043181,-775.91,0.00014042,2]
[347098998,1735497043190,-168.8,0.00014042,2]
[347098999,1735497043200,-679.19,0.00014042,2]
[347099000,1735497043210,-500.0,0.00014042,2]
[347099001,1735497043220,-500.0,0.00014042,2]
[347099002,1735497043229,-3537.28,0.00014042,2]
[347099003,1735497043239,-500.0,0.00014269,2]
[347099004,1735497043248,-500.0,0.0001427,2]
[347099005,1735497043257,-500.0,0.0001427,2]
[347099006,1735497043268,-692.92,0.0001427,2]
[347099007,1735497043278,-532.63,0.0001427,2]
[347099008,1735497043288,-500.0,0.0001427,2]
[347099009,1735497043297,-500.0,0.0001427,2]
[347099010,1735497043306,-831.99,0.0001427,2]
[347099011,1735497043318,-1748.63,0.0001427,2]
[347099012,1735497043327,-761.11,0.0001427,2]
[347099013,1735497043337,-500.0,0.00014271,2]
[347099014,1735497043347,-500.0,0.00014271,2]
[347099015,1735497043357,-500.0,0.00014271,2]
[347099017,1735497043366,-500.0,0.00014271,2]
[347099019,1735497043375,-518.41,0.00014271,2]
[347099020,1735497043385,-519.09,0.00014271,2]
[347099021,1735497043394,-500.0,0.00014272,2]
[347099022,1735497043404,-512.7,0.00014272,2]
[347099025,1735497043413,-500.0,0.00014272,2]
[347099028,1735497043422,-500.0,0.00014272,2]
[347099030,1735497043432,-500.0,0.00014272,2]
[347099032,1735497043441,-500.0,0.00014272,2]
[347099034,1735497043451,-1355.83,0.00014272,2]
[347099036,1735497043460,-635.86,0.00014272,2]
[347099037,1735497043470,-992.4,0.00014272,2]
[347099038,1735497043480,-2255.77,0.00014272,2]
[347099039,1735497043490,-1000.0,0.00014283,2]
[347099040,1735497043499,-775.91,0.00014316,2]
[347099041,1735497043509,-679.19,0.00014316,2]
[347099042,1735497043518,-500.0,0.00014316,2]
[347099043,1735497043528,-500.0,0.00014316,2]
[347099044,1735497043538,-3537.28,0.00014316,2]
[347099045,1735497043547,-600.0,0.00014438,2]
[347099046,1735497043557,-500.0,0.00014543,2]
[347099047,1735497043566,-500.0,0.00014544,2]
[347099048,1735497043576,-500.0,0.00014544,2]
[347099049,1735497043585,-692.92,0.00014544,2]
[347099050,1735497043595,-532.63,0.00014544,2]
[347099051,1735497043605,-500.0,0.00014544,2]
[347099052,1735497043616,-500.0,0.00014544,2]
[347099053,1735497043625,-831.99,0.00014544,2]
[347099054,1735497043635,-1748.63,0.00014544,2]
[347099055,1735497043645,-761.11,0.00014544,2]
[347099056,1735497043654,-500.0,0.00014545,2]
[347099057,1735497043664,-500.0,0.00014545,2]
[347099058,1735497043674,-500.0,0.00014545,2]
[347099059,1735497043684,-487.81061265,0.00014545,2]
[347099060,1735497043693,-518.41,0.00014545,2]
[347099061,1735497043703,-519.09,0.00014545,2]
[347099062,1735497043712,-500.0,0.00014546,2]
[347099063,1735497043721,-512.7,0.00014546,2]
[347099064,1735497043731,-500.0,0.00014546,2]
[347099065,1735497043742,-500.0,0.00014546,2]
[347099066,1735497043751,-500.0,0.00014546,2]
[347099067,1735497043761,-500.0,0.00014546,2]
[347099068,1735497043770,-1355.83,0.00014546,2]
[347099069,1735497043779,-635.86,0.00014546,2]
[347099070,1735497043790,-992.4,0.00014546,2]
[347099071,1735497043799,-2255.77,0.00014546,2]
[347099072,1735497043809,-372.14111368,0.00014589,2]
[347099073,1735497043819,-775.91,0.0001459,2]
[347099074,1735497043828,-679.19,0.0001459,2]
[347099075,1735497043837,-500.0,0.0001459,2]
[347099076,1735497043847,-500.0,0.0001459,2]
[347099077,1735497043856,-3537.28,0.0001459,2]
[347099078,1735497043866,-2668.1096,0.0001463,2]
[347099079,1735497043875,-151.0,0.00014685,2]
[347099080,1735497043884,-500.0,0.00014817,2]
[347099081,1735497043893,-445.69396831,0.00014818,2]
[347099082,1735497043903,-500.0,0.00014818,2]
[347099083,1735497043912,-692.92,0.00014818,2]
[347099084,1735497043921,-532.63,0.00014818,2]
[347099085,1735497043931,-500.0,0.00014818,2]
[347099086,1735497043940,-500.0,0.00014818,2]
[347099087,1735497043949,-831.99,0.00014818,2]
[347099088,1735497043959,-1748.63,0.00014818,2]
[347099089,1735497043969,-761.11,0.00014818,2]
[347099090,1735497043978,-500.0,0.00014819,2]
[347099091,1735497043989,-500.0,0.00014819,2]
[347099092,1735497044000,-500.0,0.00014819,2]
[347099093,1735497044010,-518.41,0.00014819,2]
[347099094,1735497044019,-519.09,0.00014819,2]
[347099095,1735497044029,-500.0,0.0001482,2]
[347099096,1735497044039,-512.7,0.0001482,2]
[347099097,1735497044049,-500.0,0.0001482,2]
[347099098,1735497044058,-500.0,0.0001482,2]
[347099099,1735497044067,-500.0,0.0001482,2]
[347099100,1735497044076,-500.0,0.0001482,2]
[347099101,1735497044086,-1355.83,0.0001482,2]
[347099102,1735497044095,-635.86,0.0001482,2]
[347099103,1735497044104,-992.4,0.0001482,2]
[347099104,1735497044114,-775.91,0.00014864,2]
[347099105,1735497044123,-679.19,0.00014864,2]
[347099106,1735497044132,-628.79200199,0.00014864,2]
[347099107,1735497044141,-259.57651255,0.00014864,2]
[347099108,1735497044151,-3537.28,0.00014864,2]
[347099109,1735497044160,-1000.0,0.00014999,2]
[347099110,1735497044170,-300.0,0.00015068,2]
[347099111,1735497044179,-500.0,0.00015091,2]
[347099112,1735497044189,-500.0,0.00015092,2]
[347099113,1735497044198,-692.92,0.00015092,2]
[347099114,1735497044207,-532.63,0.00015092,2]
[347099115,1735497044216,-500.0,0.00015092,2]
[347099116,1735497044226,-500.0,0.00015092,2]
[347099117,1735497044235,-831.99,0.00015092,2]
[347099118,1735497044244,-1748.63,0.00015092,2]
[347099119,1735497044253,-761.11,0.00015092,2]
[347099120,1735497044263,-500.0,0.00015093,2]
[347099121,1735497044319,-500.0,0.00015093,2]
[347099122,1735497044329,-500.0,0.00015093,2]
[347099123,1735497044338,-518.41,0.00015093,2]
[347099124,1735497044349,-519.09,0.00015093,2]
[347099125,1735497044359,-537.80656107,0.00015094,2]
[347099126,1735497044368,-512.7,0.00015094,2]
[347099127,1735497044377,-500.0,0.00015094,2]
[347099128,1735497044386,-565.19331407,0.00015094,2]
[347099129,1735497044396,-461.67375872,0.00015094,2]
[347099130,1735497044405,-500.0,0.00015094,2]
[347099131,1735497044414,-1355.83,0.00015094,2]
[347099132,1735497044423,-635.86,0.00015094,2]
[347099133,1735497044433,-992.4,0.00015094,2]
[347099134,1735497044442,-775.91,0.00015138,2]
[347099135,1735497044451,-679.19,0.00015138,2]
[347099136,1735497044460,-3537.28,0.00015138,2]
[347099137,1735497044470,-500.0,0.00015365,2]
[347099138,1735497044479,-500.0,0.00015366,2]
[347099139,1735497044488,-692.92,0.00015366,2]
[347099140,1735497044498,-532.63,0.00015366,2]
[347099141,1735497044507,-220.9806846,0.00015366,2]
[347099142,1735497044520,-500.0,0.00015366,2]
[347099143,1735497044529,-831.99,0.00015366,2]
[347099144,1735497044540,-1748.63,0.00015366,2]
[347099145,1735497044549,-761.11,0.00015366,2]
[347099146,1735497044558,-500.0,0.00015367,2]
[347099147,1735497044567,-462.36,0.00015367,2]
[347099148,1735497044577,-500.0,0.00015367,2]
[347099149,1735497044586,-518.41,0.00015367,2]
[347099150,1735497044595,-519.09,0.00015367,2]
[347099151,1735497044605,-512.7,0.00015368,2]
[347099152,1735497044614,-500.0,0.00015368,2]
[347099153,1735497044623,-500.0,0.00015368,2]
[347099154,1735497044632,-1355.83,0.00015368,2]
[347099155,1735497044641,-635.86,0.00015368,2]
[347099156,1735497044650,-992.4,0.00015368,2]
[347099157,1735497044659,-437.4,0.00015394,2]
[347099158,1735497044669,-1532.32,0.00015394,2]
[347099159,1735497044678,-500.0,0.00015411,2]
[347099160,1735497044687,-775.91,0.00015412,2]
[347099161,1735497044696,-679.19,0.00015412,2]
[347099162,1735497044710,-3537.28,0.00015412,2]
[347099163,1735497044720,-418.87517021,0.00015639,2]
[347099164,1735497044729,-500.0,0.0001564,2]
[347099165,1735497044738,-692.92,0.0001564,2]
[347099166,1735497044747,-532.63,0.0001564,2]
[347099167,1735497044756,-500.0,0.0001564,2]
[347099168,1735497044765,-831.99,0.0001564,2]
[347099169,1735497044774,-1748.63,0.0001564,2]
[347099170,1735497044783,-761.11,0.0001564,2]
[347099171,1735497044793,-500.0,0.00015641,2]
[347099172,1735497044803,-500.0,0.00015641,2]
[347099173,1735497044812,-518.41,0.00015641,2]
[347099174,1735497044821,-519.09,0.00015641,2]
[347099175,1735497044830,-512.7,0.00015642,2]
[347099176,1735497044839,-500.0,0.00015642,2]
[347099177,1735497044852,-500.0,0.00015642,2]
[347099178,1735497044861,-1355.83,0.00015642,2]
[347099179,1735497044870,-635.86,0.00015642,2]
[347099180,1735497044879,-992.4,0.00015642,2]
[347099181,1735497044888,-775.91,0.00015686,2]
[347099182,1735497044897,-679.19,0.00015686,2]
[347099183,1735497044906,-3537.28,0.00015686,2]
[347099184,1735497044916,-1000.0,0.00015711,2]
[347099185,1735497044925,-152.0,0.00015733,3]
[347099186,1735497044934,-500.0,0.00015808,2]
[347099187,1735497044943,-600.0,0.00015808,2]
[347099188,1735497044952,-500.0,0.00015914,2]
[347099189,1735497044961,-692.92,0.00015914,2]
[347099190,1735497044970,-532.63,0.00015914,2]
[347099191,1735497044980,-500.0,0.00015914,2]
[347099192,1735497044989,-831.99,0.00015914,2]
[347099193,1735497044998,-1748.63,0.00015914,2]
[347099194,1735497045007,-761.11,0.00015914,2]
[347099195,1735497045017,-353.76972752,0.00015915,2]
[347099196,1735497045027,-500.0,0.00015915,2]
[347099197,1735497045037,-518.41,0.00015915,2]
[347099198,1735497045047,-519.09,0.00015915,2]
[347099199,1735497045056,-512.7,0.00015916,2]
[347099200,1735497045065,-500.0,0.00015916,2]
[347099201,1735497045074,-543.72914945,0.00015916,2]
[347099202,1735497045083,-1355.83,0.00015916,2]
[347099203,1735497045091,-635.86,0.00015916,2]
[347099204,1735497045101,-992.4,0.00015916,2]
[347099205,1735497045110,-698.29845496,0.00015959,2]
[347099206,1735497045120,-775.91,0.0001596,2]
[347099207,1735497045129,-679.19,0.0001596,2]
[347099208,1735497045138,-3537.28,0.0001596,2]
[347099209,1735497045147,-550.0,0.00016,2]
[347099210,1735497045157,-348.29066092,0.00016155,2]
[347099211,1735497045166,-809.0,0.00016188,2]
[347099212,1735497045175,-280.32225273,0.00016188,2]
[347099213,1735497045184,-692.92,0.00016188,2]
[347099214,1735497045193,-532.63,0.00016188,2]
[347099215,1735497045202,-500.0,0.00016188,2]
[347099216,1735497045211,-831.99,0.00016188,2]
[347099217,1735497045220,-1748.63,0.00016188,2]
[347099218,1735497045229,-761.11,0.00016188,2]
[347099219,1735497045239,-500.0,0.00016189,2]
[347099220,1735497045249,-518.41,0.00016189,2]
[347099221,1735497045258,-519.09,0.00016189,2]
[347099222,1735497045269,-512.7,0.0001619,2]
[347099223,1735497045279,-500.0,0.0001619,2]
[347099224,1735497045288,-1355.83,0.0001619,2]
[347099225,1735497045297,-635.86,0.0001619,2]
[347099226,1735497045307,-992.4,0.0001619,2]
[347099227,1735497045318,-150.0,0.00016208,2]
[347099228,1735497045327,-775.91,0.00016234,2]
[347099229,1735497045336,-679.19,0.00016234,2]
[347099230,1735497045347,-3537.28,0.00016234,2]
[347099231,1735497045356,-341.6,0.00016255,2]
[347099232,1735497045365,-150.0,0.00016259,2]
[347099233,1735497045374,-150.0,0.00016297,2]
[347099234,1735497045384,-150.0,0.00016302,2]
[347099235,1735497045393,-150.0,0.0001637,2]
[347099236,1735497045402,-1702.99,0.00016415,7]
[347099237,1735497045412,-1702.99,0.00016415,7]
[347099238,1735497045421,-1702.99,0.00016415,7]
[347099239,1735497045430,-1702.99,0.00016415,7]
[347099240,1735497045440,-150.0,0.00016417,2]
[347099241,1735497045449,-150.0,0.00016434,2]
[347099242,1735497045458,-300.0,0.00016438,2]
[347099243,1735497045467,-259.88075236,0.00016438,2]
[347099244,1735497045477,-150.0,0.00016444,2]
[347099245,1735497045486,-692.92,0.00016462,2]
[347099246,1735497045495,-532.63,0.00016462,2]
[347099247,1735497045504,-500.0,0.00016462,2]
[347099248,1735497045513,-831.99,0.00016462,2]
[347099249,1735497045522,-1748.63,0.00016462,2]
[347099250,1735497045531,-761.11,0.00016462,2]
[347099251,1735497045541,-500.0,0.00016463,2]
[347099252,1735497045550,-518.41,0.00016463,2]
[347099253,1735497045560,-519.09,0.00016463,2]
[347099254,1735497045569,-512.7,0.00016464,2]
[347099255,1735497045578,-500.0,0.00016464,2]
[347099256,1735497045587,-1355.83,0.00016464,2]
[347099257,1735497045597,-635.86,0.00016464,2]
[347099258,1735497045606,-992.4,0.00016464,2]
[347099259,1735497045615,-150.0,0.00016479,2]
[347099260,1735497045624,-150.0,0.00016484,2]
[347099261,1735497045634,-150.0,0.00016499,2]
[347099262,1735497045643,-775.91,0.00016508,2]
[347099263,1735497045652,-679.19,0.00016508,2]
[347099264,1735497045662,-3537.28,0.00016508,2]
[347099265,1735497045671,-393.482,0.0001653,2]
[347099266,1735497045681,-1500.0,0.0001654,2]
[347099267,1735497045690,-150.0,0.00016598,2]
[347099268,1735497045700,-150.0,0.00016598,2]
[347099269,1735497045709,-500.0,0.00016605,14]
[347099270,1735497045719,-500.0,0.00016614,14]
[347099271,1735497045729,-500.0,0.00016623,14]
[347099272,1735497045738,-500.0,0.00016632,14]
[347099273,1735497045748,-500.0,0.0001664,14]
[347099274,1735497045757,-500.0,0.00016649,14]
[347099275,1735497045766,-150.0,0.0001665,2]
[347099276,1735497045775,-150.0,0.00016656,2]
[347099277,1735497045785,-249.81,0.00016658,30]
[347099279,1735497045797,-500.0,0.00016658,14]
[347099281,1735497045809,-150.0,0.00016667,2]
[347099283,1735497045819,-1702.99,0.00016689,7]
[347099285,1735497045829,-1702.99,0.00016689,7]
[347099287,1735497045838,-2400.071,0.00016696,2]
[347099289,1735497045848,-165.147,0.00016696,2]
[347099291,1735497045857,-1795.73,0.000167,2]
[347099292,1735497045865,-182.83,0.00016712,2]
[347099293,1735497045875,-348.29066092,0.00016727,2]
[347099294,1735497045884,-692.92,0.00016736,2]
[347099295,1735497045894,-532.63,0.00016736,2]
[347099296,1735497045903,-154.31,0.00016736,2]
[347099297,1735497045912,-831.99,0.00016736,2]
[347099298,1735497045922,-1748.63,0.00016736,2]
[347099299,1735497045931,-761.11,0.00016736,2]
[347099300,1735497045941,-159498.95270581,0.00016736,2]